fUSD/lending_fUSD_20240618
["ID","MTS","AMOUNT","RATE_DAILY","PERIOD"]
[329790334,1718674303081,-1383.56,0.00023013,3]
[329790335,1718674303090,-416.74457332,0.00023013,3]
[329790336,1718674303100,-1147.94,0.00023013,3]
[329790337,1718674303112,-937.65,0.00023013,3]
[329790338,1718674303122,-1499.69,0.00023013,3]
[329790339,1718674303131,-500.0,0.00023013,3]
[329790340,1718674303140,-500.0,0.00023013,3]
[329790341,1718674303149,-500.0,0.00023013,3]
[329790342,1718674303157,-984.83,0.00023013,3]
[329790343,1718674303166,-500.0,0.00023013,3]
[329790344,1718674303176,-500.0,0.00023013,3]
[329790345,1718674303185,-500.17,0.00023013,3]
[329790346,1718674303195,-720.19,0.00023013,3]
[329790347,1718674303204,-376.56,0.00023013,3]
[329790348,1718674303214,-520.43,0.00023013,3]
[329790349,1718674303223,-500.0,0.00023013,3]
[329790350,1718674303232,-1244.19,0.00023013,3]
[329790351,1718674303242,-14271.55,0.00023013,3]
[329790352,1718674303251,-854.25,0.00023013,3]
[329790353,1718674303261,-500.0,0.00023013,3]
[329790354,1718674303271,-528.92,0.00023013,3]
[329790355,1718674303281,-500.0,0.00023013,3]
[329790356,1718674303291,-500.0,0.00023013,3]
[329790357,1718674303301,-500.0,0.00023013,3]
[329790358,1718674303310,-753.1,0.00023013,3]
[329790359,1718674303320,-500.0,0.00023013,3]
[329790360,1718674303330,-1017.17,0.00023013,3]
[329790361,1718674303340,-500.0,0.00023013,3]
[329790362,1718674303350,-645.11,0.00023013,3]
[329790363,1718674303367,-500.0,0.00023013,3]
[329790364,1718674303376,-759.95,0.00023013,3]
[329790365,1718674303387,-500.0,0.00023013,3]
[329790366,1718674303398,-500.0,0.00023013,3]
[329790367,1718674303408,-995.5,0.00023013,3]
[329790368,1718674303418,-500.0,0.00023013,3]
[329790369,1718674303427,-434.66,0.00023013,3]
[329790370,1718674303438,-500.0,0.00023013,3]
[329790371,1718674303449,-736.32,0.00023013,3]
[329790372,1718674303461,-500.0,0.00023013,3]
[329790373,1718674303471,-993.92,0.00023013,3]
[329790374,1718674303481,-971.37,0.00023013,3]
[329790375,1718674303491,-500.0,0.00023013,3]
[329790376,1718674303500,-154.64,0.00023013,3]
[329790377,1718674303510,-1037.46,0.00023013,3]
[329790378,1718674303521,-500.0,0.00023013,3]
[329790379,1718674303531,-500.0,0.00023013,3]
[329790380,1718674303542,-500.0,0.00023013,3]
[329790381,1718674303552,-500.0,0.00023013,3]
[329790382,1718674303561,-1039.13,0.00023013,3]
[329790383,1718674303571,-500.0,0.00023013,3]
[329790384,1718674303581,-2898.2,0.00023013,3]
[329790385,1718674303590,-500.0,0.00023013,3]
[329790386,1718674303601,-500.0,0.00023013,3]
[329790387,1718674303619,-802.06,0.00023013,3]
[329790388,1718674303628,-500.0,0.00023013,3]
[329790389,1718674303638,-1376.06,0.00023013,3]
[329790390,1718674303647,-500.0,0.00023013,3]
[329790391,1718674303656,-6253.28,0.00023013,3]
[329790392,1718674303665,-582.9008676,0.00023013,3]
[329790393,1718674303674,-1428.23,0.00023013,3]
[329790394,1718674303684,-500.0,0.00023013,3]
[329790395,1718674303694,-734.95,0.00023013,3]
[329790396,1718674303703,-500.0,0.00023013,3]
[329790397,1718674303712,-527.54,0.00023013,3]
[329790398,1718674303720,-1348.04,0.00023013,3]
[329790399,1718674303730,-500.0,0.00023013,3]
[329790400,1718674303739,-5610.58,0.00023013,3]
[329790401,1718674303749,-434.03411304,0.00023013,3]
[329790402,1718674303760,-519.32,0.00023013,3]
[329790403,1718674303770,-500.0,0.00023013,3]
[329790404,1718674303779,-500.0,0.00023013,3]
[329790405,1718674303788,-1101.33,0.00023013,3]
[329790406,1718674303810,-500.0,0.00023013,3]
[329790407,1718674303827,-1627.28,0.00023013,3]
[329790408,1718674303845,-790.14,0.00023013,3]
[329790409,1718674303868,-3008.62,0.00023013,3]
[329790410,1718674303887,-500.0,0.00023013,3]
[329790411,1718674303903,-1457.44,0.00023013,3]
[329790412,1718674303921,-575.24,0.00023013,3]
[329790413,1718674303936,-500.0,0.00023013,3]
[329790414,1718674303952,-760.35,0.00023013,3]
[329790415,1718674303971,-500.0,0.00023013,3]
[329790416,1718674303989,-1208.34,0.00023013,3]
[329790417,1718674304002,-500.0,0.00023013,3]
[329790418,1718674304021,-4848.48,0.00023013,3]
[329790419,1718674304035,-1589.85,0.00023013,3]
[329790420,1718674304052,-589.3,0.00023013,3]
[329790421,1718674304065,-805.12,0.00023013,3]
[329790422,1718674304080,-662.08,0.00023013,3]
[329790423,1718674304096,-500.0,0.00023013,3]
[329790424,1718674304121,-1221.18,0.00023013,3]
[329790425,1718674304135,-1335.51,0.00023013,3]
[329790426,1718674304153,-500.0,0.00023013,3]
[329790427,1718674304168,-12271.93,0.00023013,3]
[329790428,1718674304183,-15922.39,0.00023013,3]
[329790429,1718674304197,-727.62,0.00023013,3]
[329790430,1718674304212,-1412.3,0.00023013,3]
[329790431,1718674304227,-398.0541461,0.00023013,3]
[329790432,1718674304241,-589.39,0.00023013,3]
[329790433,1718674304256,-571.59,0.00023013,3]
[329790434,1718674304270,-500.0,0.00023013,3]
[329790435,1718674304285,-4635.4,0.00023013,3]
[329790436,1718674304301,-571.25,0.00023013,3]
[329790437,1718674304316,-500.0,0.00023013,3]
[329790438,1718674304330,-500.0,0.00023013,3]
[329790439,1718674304344,-1780.73,0.00023013,3]
[329790440,1718674304367,-33245.11,0.00023013,3]
[329790441,1718674304381,-500.0,0.00023013,3]
[329790442,1718674304395,-500.0,0.00023013,3]
[329790443,1718674304409,-839.45,0.00023013,3]
[329790444,1718674304425,-644.0,0.00023013,3]
[329790445,1718674304439,-663.34,0.00023013,3]
[329790446,1718674304454,-5540.37,0.00023013,3]
[329790447,1718674304471,-500.0,0.00023013,3]
[329790448,1718674304485,-1394.47,0.00023013,3]
[329790449,1718674304501,-669.82,0.00023013,3]
[329790450,1718674304517,-1724.01,0.00023013,3]
[329790451,1718674304532,-500.0,0.00023013,3]
[329790452,1718674304548,-500.0,0.00023013,3]
[329790453,1718674304563,-500.0,0.00023013,3]
[329790454,1718674304579,-2270.57,0.00023013,3]
[329790455,1718674304593,-579.21,0.00023013,3]
[329790456,1718674304612,-30968.67,0.00023013,3]
[329790457,1718674304629,-606.0,0.00023013,3]
[329790458,1718674304643,-1615.44,0.00023013,3]
[329790459,1718674304657,-4248.96,0.00023013,3]
[329790460,1718674304672,-554.16,0.00023013,3]
[329790461,1718674304686,-500.0,0.00023013,3]
[329790462,1718674304701,-3831.34,0.00023013,3]
[329790463,1718674304715,-754.06,0.00023013,3]
[329790464,1718674304730,-387.25,0.00023013,3]
[329790465,1718674304745,-944.53,0.00023013,3]
[329790466,1718674304761,-500.0,0.00023013,3]
[329790467,1718674304778,-500.0,0.00023013,3]
[329790468,1718674304794,-985.58,0.00023013,3]
[329790469,1718674304810,-500.0,0.00023013,3]
[329790470,1718674304827,-1052.32,0.00023013,3]
[329790471,1718674304837,-3399.39,0.00023013,3]
[329790472,1718674304848,-1396.24,0.00023013,3]
[329790473,1718674304864,-650.09,0.00023013,3]
[329790474,1718674304874,-749.22,0.00023013,3]
[329790475,1718674304884,-557.81,0.00023013,3]
[329790476,1718674304894,-500.0,0.00023013,3]
[329790477,1718674304904,-881.32,0.00023013,3]
[329790478,1718674304914,-1061.15,0.00023013,3]
[329790479,1718674304924,-7554.41,0.00023013,3]
[329790480,1718674304934,-500.0,0.00023013,3]
[329790481,1718674304943,-500.0,0.00023013,3]
[329790482,1718674304953,-5772.4,0.00023013,3]
[329790483,1718674304962,-2852.36,0.00023013,3]
[329790484,1718674304972,-1505.88,0.00023013,3]
[329790485,1718674304982,-1149.98,0.00023013,3]
[329790486,1718674304992,-5467.78,0.00023013,3]
[329790487,1718674305002,-500.0,0.00023013,3]
[329790488,1718674305012,-500.0,0.00023013,3]
[329790489,1718674305022,-725.06,0.00023013,3]
[329790490,1718674305031,-500.0,0.00023013,3]
[329790491,1718674305041,-1954.75,0.00023013,3]
[329790492,1718674305051,-6906.22,0.00023013,3]
[329790493,1718674305060,-5172.93,0.00023013,3]
[329790494,1718674305070,-2970.08,0.00023013,3]
[329790495,1718674305079,-869.78,0.00023013,3]
[329790496,1718674305088,-500.0,0.00023013,3]
[329790497,1718674305098,-183.01,0.00023013,3]
[329790498,1718674305110,-3267.75,0.00023013,3]
[329790499,1718674305120,-500.0,0.00023013,3]
[329790500,1718674305129,-9080.48,0.00023013,3]
[329790501,1718674305140,-500.0,0.00023013,3]
[329790502,1718674305149,-1001.47,0.00023013,3]
[329790503,1718674305159,-4901.24,0.00023013,3]
[329790504,1718674305168,-35868.9,0.00023013,3]
[329790505,1718674305178,-837.96,0.00023013,3]
[329790506,1718674305187,-2049.11,0.00023013,3]
[329790507,1718674305197,-1326.19,0.00023013,3]
[329790508,1718674305206,-728.43,0.00023013,3]
[329790509,1718674305216,-1438.27,0.00023013,3]
[329790510,1718674305227,-962.36,0.00023013,3]
[329790511,1718674305236,-1674.69,0.00023013,3]
[329790512,1718674305247,-1456.4,0.00023013,3]
[329790513,1718674305257,-5253.29,0.00023013,3]
[329790514,1718674305266,-2356.76,0.00023013,3]
[329790515,1718674305576,-1332.69,0.00023013,3]
[329790516,1718674305740,-3282.61,0.00023013,3]
[329790517,1718674305762,-175.55396049,0.00023013,3]
[329790518,1718674305780,-741.52,0.00023013,3]
[329790519,1718674305790,-500.0,0.00023013,3]
[329790520,1718674305799,-10743.9,0.00023013,3]
[329790521,1718674305808,-3142.54,0.00023013,3]
[329790522,1718674305818,-767.86,0.00023013,3]
[329790523,1718674305827,-1171.23,0.00023013,3]
[329790524,1718674305836,-500.0,0.00023013,3]
[329790525,1718674305845,-2084.47,0.00023013,3]
[329790526,1718674305855,-1362.62,0.00023013,3]
[329790527,1718674305870,-500.0,0.00023013,3]
[329790528,1718674305880,-500.0,0.00023013,3]
[329790529,1718674305889,-500.0,0.00023013,3]
[329790530,1718674305899,-2551.19,0.00023013,3]
[329790531,1718674305908,-1068.89,0.00023013,3]
[329790532,1718674305918,-648.36,0.00023013,3]
[329790533,1718674305928,-1045.01,0.00023013,3]
[329790534,1718674305938,-3452.57,0.00023013,3]
[329790535,1718674305947,-3978.37,0.00023013,3]
[329790536,1718674305957,-500.0,0.00023013,3]
[329790537,1718674305966,-1665.91,0.00023013,3]
[329790538,1718674305976,-3368.33,0.00023013,3]
[329790539,1718674305985,-456.32038077,0.00023013,3]
[329790540,1718674306349,-5109.01961923,0.00023013,3]
[329790541,1718674306365,-968.79,0.00023013,3]
[329790542,1718674306375,-1773.84838077,0.00023013,3]
[329790543,1718674306386,-289.36,0.00023013,3]
[329790544,1718674306898,-157.011178,0.000219,2]
[329790545,1718674306907,-200.69039299,0.00021917,2]
[329790546,1718674306917,-577.51592853,0.00021917,2]
[329790547,1718674306926,-403.80053765,0.00021917,2]
[329790548,1718674306935,-1198.84161923,0.00023013,3]
[329790549,1718674306944,-150.24418383,0.00023013,3]
[329790550,1718674307481,-193.81771557,0.00017259,2]
[329790551,1718674307490,-656.589,0.00019744,2]
[329790552,1718674307501,-151.0,0.000206,2]
[329790553,1718674307512,-102.16263043,0.00021,2]
[329790554,1718674307524,-48.83736957,0.00021,2]
[329790555,1718674307534,-155.98552265,0.00021707,2]
[329790556,1718674307546,-151.0,0.00021717,2]
[329790557,1718674307556,-155.98552265,0.00021887,2]
[329790558,1718674307566,-151.0,0.000219,2]
[329790559,1718674307577,-672.76348465,0.00021916,2]
[329790560,1718674307806,-151.0,0.00021916,2]
[329790561,1718674307815,-830.2,0.00021917,2]
[329790562,1718674307824,-2701.54,0.00021917,2]
[329790563,1718674307833,-830.2,0.00022191,3]
[329790564,1718674307843,-409.38842379,0.00022191,3]
[329790565,1718674307855,-863.9,0.00022191,3]
[329790566,1718674307876,-1400.0,0.00022191,3]
[329790567,1718674307888,-28.25157621,0.00022191,3]
[329790568,1718674307897,-830.2,0.00022465,3]
[329790569,1718674307906,-46.41389044,0.00022465,3]
[329790570,1718674307917,-2655.12610956,0.00022465,3]
[329790571,1718674307926,-830.2,0.00022739,3]
[329790572,1718674307935,-2701.54,0.00022739,3]
[329790573,1718674307945,-617.0,0.00022744,2]
[329790574,1718674307954,-1235.29581617,0.00023013,3]
[329790575,1718674307963,-684.66,0.00023013,3]
[329790576,1718674307972,-1518.31,0.00023013,3]
[329790577,1718674307981,-213.16409094,0.00023013,3]
[329790578,1718674307990,-1202.6,0.00023013,3]
[329790579,1718674308000,-10734.0,0.00023013,3]
[329790580,1718674308009,-555.92,0.00023013,3]
[329790581,1718674308019,-501.6424286,0.00023013,3]
[329790582,1718674308029,-780.03,0.00023013,3]
[329790583,1718674308039,-177.79,0.00023013,3]
[329790584,1718674308048,-1744.01,0.00023013,3]
[329790585,1718674308058,-500.0,0.00023013,3]
[329790586,1718674308068,-3731.99,0.00023013,3]
[329790587,1718674308078,-1219.32,0.00023013,3]
[329790588,1718674308087,-500.0,0.00023013,3]
[329790589,1718674308097,-500.0,0.00023013,3]
[329790590,1718674308106,-500.0,0.00023013,3]
[329790591,1718674308125,-1698.85,0.00023013,3]
[329790592,1718674308135,-5901.94,0.00023013,3]
[329790593,1718674308144,-824.88,0.00023013,3]
[329790594,1718674308154,-601.86,0.00023013,3]
[329790595,1718674308163,-4224.5,0.00023013,3]
[329790596,1718674308172,-1509.65,0.00023013,3]
[329790597,1718674308181,-748.26,0.00023013,3]
[329790598,1718674308376,-571.04,0.00023013,3]
[329790599,1718674308385,-2832.97,0.00023013,3]
[329790600,1718674308396,-2815.73,0.00023013,3]
[329790601,1718674308406,-10283.61,0.00023013,3]
[329790602,1718674308415,-500.0,0.00023013,3]
[329790603,1718674308424,-7683.1,0.00023013,3]
[329790604,1718674308434,-500.0,0.00023013,3]
[329790605,1718674308443,-500.0,0.00023013,3]
[329790606,1718674308453,-652.26,0.00023013,3]
[329790607,1718674308463,-4441.39,0.00023013,3]
[329790608,1718674308476,-1258.99,0.00023013,3]
[329790609,1718674308486,-785.18,0.00023013,3]
[329790610,1718674308496,-1984.01,0.00023013,3]
[329790611,1718674308505,-500.0,0.00023013,3]
[329790612,1718674308516,-711.12,0.00023013,3]
[329790613,1718674308525,-1914.48,0.00023013,3]
[329790614,1718674308535,-2844.91,0.00023013,3]
[329790615,1718674308546,-500.0,0.00023013,3]
[329790616,1718674308556,-3734.02,0.00023013,3]
[329790617,1718674308565,-2239.47,0.00023013,3]
[329790618,1718674308575,-2384.25,0.00023013,3]
[329790619,1718674308584,-1198.33,0.00023013,3]
[329790620,1718674308595,-500.0,0.00023013,3]
[329790621,1718674308604,-908.82,0.00023013,3]
[329790622,1718674308619,-1179.67,0.00023013,3]
[329790623,1718674308629,-4377.28,0.00023013,3]
[329790624,1718674308638,-7636.75,0.00023013,3]
[329790625,1718674308647,-874.67,0.00023013,3]
[329790626,1718674308656,-631.17,0.00023013,3]
[329790627,1718674308665,-3639.01,0.00023013,3]
[329790628,1718674308674,-801.27,0.00023013,3]
[329790629,1718674308683,-4152.02,0.00023013,3]
[329790630,1718674308692,-818.56,0.00023013,3]
[329790631,1718674308705,-500.0,0.00023013,3]
[329790632,1718674308714,-2147.44,0.00023013,3]
[329790633,1718674308723,-500.0,0.00023013,3]
[329790634,1718674308733,-10636.95,0.00023013,3]
[329790635,1718674308743,-2105.48,0.00023013,3]
[329790636,1718674308753,-500.0,0.00023013,3]
[329790637,1718674308762,-1345.61,0.00023013,3]
[329790638,1718674308772,-24566.15,0.00023013,3]
[329790639,1718674308781,-500.0,0.00023013,3]
[329790640,1718674308791,-5713.96,0.00023013,3]
[329790641,1718674308800,-1919.7,0.00023013,3]
[329790642,1718674308810,-500.0,0.00023013,3]
[329790643,1718674308819,-5867.13,0.00023013,3]
[329790644,1718674308828,-500.0,0.00023013,3]
[329790645,1718674308838,-7405.63,0.00023013,3]
[329790646,1718674308847,-723.85,0.00023013,3]
[329790647,1718674308857,-946.53,0.00023013,3]
[329790648,1718674308871,-1153.45,0.00023013,3]
[329790649,1718674308881,-500.0,0.00023013,3]
[329790650,1718674308891,-500.0,0.00023013,3]
[329790651,1718674308901,-2856.53,0.00023013,3]
[329790652,1718674308911,-500.0,0.00023013,3]
[329790653,1718674308920,-1097.51,0.00023013,3]
[329790654,1718674308931,-601.59286395,0.00023013,3]
[329790655,1718674308941,-1006.89,0.00023013,3]
[329790656,1718674308950,-500.0,0.00023013,3]
[329790657,1718674308960,-3740.45,0.00023013,3]
[329790658,1718674308970,-34317.45,0.00023013,3]
[329790659,1718674308979,-2059.45,0.00023013,3]
[329790660,1718674308989,-436.96356477,0.00023013,3]
[329790661,1718674308998,-357.75202084,0.00023013,3]
[329790662,1718674309008,-500.0,0.00023013,3]
[329790663,1718674309017,-500.0,0.00023013,3]
[329790664,1718674309027,-535.94,0.00023013,3]
[329790665,1718674309036,-627.92,0.00023013,3]
[329790666,1718674309046,-3644.66,0.00023013,3]
[329790667,1718674309055,-1824.82,0.00023013,3]
[329790668,1718674309065,-172.98825373,0.00023013,3]
[329790669,1718674309075,-1266.32,0.00023013,3]
[329790670,1718674309085,-748.42,0.00023013,3]
[329790671,1718674309094,-1988.37,0.00023013,3]
[329790672,1718674309104,-12454.15,0.00023013,3]
[329790673,1718674309121,-500.0,0.00023013,3]
[329790674,1718674309130,-993.76,0.00023013,3]
[329790675,1718674309139,-674.03,0.00023013,3]
[329790676,1718674309148,-500.0,0.00023013,2]
[329790677,1718674309157,-500.0,0.00023013,3]
[329790678,1718674309166,-840.55,0.00023013,3]
[329790679,1718674309175,-830.2,0.00023013,3]
[329790680,1718674309184,-2701.54,0.00023013,3]
[329790681,1718674309193,-211.71759,0.00023013,2]
[329790682,1718674309203,-2569.583205,0.00023013,2]
[329790683,1718674309212,-182.908713,0.00023013,2]
[329790684,1718674309222,-968.219101,0.00023013,2]
[329790685,1718674309232,-169.470082,0.00023013,2]
[329790686,1718674309242,-181.256457,0.00023013,2]
[329790687,1718674309252,-180.101693,0.00023013,2]
[329790688,1718674309261,-1241.352445,0.00023013,2]
[329790689,1718674309271,-1524.369328,0.00023013,2]
[329790690,1718674309280,-169.470082,0.00023013,2]
[329790691,1718674309290,-181.256457,0.00023013,2]
[329790692,1718674309300,-3255.720205,0.00023013,2]
[329790693,1718674309310,-715.2271903,0.00023032,2]
[329790694,1718674309320,-4075.0,0.00023087,2]
[329790695,1718674309329,-3872.0,0.00023087,2]
[329790696,1718674309340,-10987.0,0.00023087,2]
[329790697,1718674309350,-1000.0,0.00023141,2]
[329790698,1718674309368,-16605.82680966,0.00023142,2]
[329790699,1718674309382,-250.1799945,0.00023142,2]
[329790700,1718674309395,-861.95,0.00023142,2]
[329790701,1718674318847,166.95,0.00011903,2]
[329790703,1718674404101,162.89,0.00021589,30]
[329790704,1718674446781,35807.02148125,0.000118,2]
[329790705,1718674453771,15625.13815425,0.00011,2]
[329790709,1718674599356,4021.38414426,0.0001,2]
[329790761,1718675434981,-317.32206976,0.00012861,2]
[329790764,1718675434992,-330.67793024,0.00012961,2]
[329790779,1718675435030,-85.71206976,0.00012961,2]
[329790787,1718675435043,-446.1437588,0.00013,2]
[329790795,1718675435061,-455.85444,0.00013,2]
[329790799,1718675435080,-139.62994829,0.00013,2]
[329790802,1718675435093,-150.0,0.00013899,2]
[329790804,1718675435115,-275.1389,0.000139,2]
[329790805,1718675435128,-540.23115171,0.000139,2]
[329790806,1718675435143,-251.47613819,0.000139,2]
[329790807,1718675435159,-276.52,0.000139,2]
[329790808,1718675435174,-260.0,0.000139,2]
[329790809,1718675435190,-184.6330101,0.000139,2]
[329790810,1718675435201,-95.9149899,0.000139,2]
[329790811,1718675435218,-56.91404163,0.000139,2]
[329790812,1718675435230,-150.0,0.00013973,2]
[329790813,1718675435243,-348.6,0.0001399,3]
[329790814,1718675435256,-648.39811539,0.00013998,2]
[329790815,1718675435270,-268.48833982,0.00013998,2]
[329790816,1718675435283,-259.5198482,0.00013998,2]
[329790817,1718675435295,-1242.17962184,0.00013998,2]
[329790818,1718675435308,-218.39571447,0.00013998,2]
[329790819,1718675435321,-57.50431865,0.00013998,2]
[329790820,1718675435335,-935.43384256,0.00013998,2]
[329790823,1718675435348,-445.79165515,0.00013998,2]
[329790824,1718675435366,-155.46043579,0.00013998,2]
[329790825,1718675435378,-259.29027129,0.00013998,2]
[329790827,1718675435391,-171.22394595,0.00013998,2]
[329790829,1718675435403,-117.32873026,0.00013999,2]
[329790832,1718675435419,-422.74122037,0.00013999,2]
[329790834,1718675435433,-671.25410559,0.00013999,2]
[329790836,1718675435446,-849.49467404,0.00013999,2]
[329790838,1718675435461,-729.38532596,0.00013999,2]
[329790839,1718675435473,-527.26914674,0.00014,2]
[329790840,1718675435488,-42245.96536208,0.00014,2]
[329790841,1718675435502,-32400.0,0.00014,2]
[329790842,1718675435516,-6996.33890937,0.00014,2]
[329790843,1718675435530,-1868.56123127,0.00014,2]
[329790844,1718675435544,-1298.63734,0.00014,2]
[329790845,1718675435558,-6586.28988782,0.00014,2]
[329790846,1718675435573,-432.000004,0.00014,2]
[329790847,1718675435639,-107926.81832779,0.00014,2]
[329790948,1718675441173,-2274.34355371,0.00014,2]
[329790949,1718675441184,-1349.05156767,0.00014,2]
[329790950,1718675441195,-13001.8,0.00014,2]
[329790951,1718675441205,-6476.8,0.00014,2]
[329790952,1718675441217,-6516.51,0.00014,2]
[329790953,1718675441228,-1296.2999897,0.00014,2]
[329790954,1718675441241,-1633.80483458,0.00014,2]
[329790955,1718675441252,-1705.4,0.00014,2]
[329790956,1718675441264,-1622.275551,0.00014,2]
[329790957,1718675441275,-2083.95419619,0.00014,2]
[329790958,1718675441287,-26022.14664159,0.00014,2]
[329790959,1718675441298,-5970.0,0.00014,2]
[329790960,1718675441309,-306.33120239,0.00014,2]
[329790966,1718675441475,-23433.29660104,0.00014,2]
[329790967,1718675441487,-13917.397061,0.00014,2]
[329790968,1718675441500,-325.74704398,0.00014,2]
[329790969,1718675441512,-599.45432527,0.00014,2]
[329790970,1718675441523,-1092.6999,0.00014,2]
[329790971,1718675441535,-16176.9981113,0.00014,2]
[329790972,1718675441546,-484.5570597,0.00014,2]
[329790973,1718675441557,-1952.07,0.00014,2]
[329790974,1718675441568,-633.33,0.00014,2]
[329790975,1718675441579,-10139.57230848,0.00014,2]
[329790977,1718675442115,-2279.02539988,0.00014,2]
[329790981,1718675442130,-609.89933194,0.00014,2]
[329790984,1718675442141,-321970.99428747,0.00014,2]
[329790987,1718675442151,-167.7614855,0.00014,2]
[329790990,1718675442160,-320.0,0.00014,2]
[329790992,1718675442170,-2540.75,0.00014,2]
[329790994,1718675442179,-408.27,0.00014879,2]
[329790996,1718675442189,-155.96,0.00014879,2]
[329790998,1718675442198,-250.0,0.00014879,2]
[329791000,1718675442208,-400.0,0.000149,5]
[329791002,1718675442217,-1240.34,0.00014998,2]
[329791003,1718675442227,-200.0,0.00015,2]
[329791005,1718675442237,-107501.84707192,0.00015,2]
[329791007,1718675442248,-416.39,0.00015225,2]
[329791009,1718675442257,-152.82903149,0.00015585,2]
[329791010,1718675442267,-366.9,0.00016168,2]
[329791012,1718675442276,-408.27,0.00016739,2]
[329791014,1718675442286,-499.99,0.0001726,2]
[329791015,1718675442296,-152.82903149,0.0001727,2]
[329791017,1718675442305,-416.39,0.00017489,2]
[329791018,1718675442315,-408.27,0.00018599,2]
[329791020,1718675442324,-152.82903149,0.00018955,2]
[329791022,1718675442334,-358.22005688,0.00019,2]
[329791023,1718675442343,-1180.05,0.00019178,5]
[329791025,1718675442352,-4822.16,0.00019498,2]
[329791027,1718675442366,-388.94807077,0.000195,2]
[329791028,1718675442376,-168.34,0.00019566,2]
[329791030,1718675442386,-416.39,0.00019753,2]
[329791032,1718675442396,-1271.0,0.00019849,2]
[329791033,1718675442405,-165.078,0.00019849,2]
[329791034,1718675442415,-812.516,0.00019849,2]
[329791035,1718675442425,-444.39,0.00019849,2]
[329791036,1718675442434,-1304.0,0.00019849,2]
[329791037,1718675442443,-2174.424,0.00019849,2]
[329791038,1718675442453,-3840.192,0.00019849,2]
[329791039,1718675442463,-30875.439,0.00019849,2]
[329791040,1718675442472,-150.672,0.00019849,2]
[329791041,1718675442482,-1196.0,0.00019849,2]
[329791042,1718675442491,-1580.633,0.00019849,2]
[329791043,1718675442500,-150.0,0.00019849,2]
[329791044,1718675442510,-150.113,0.00019849,2]
[329791045,1718675442519,-252.946,0.00019849,2]
[329791046,1718675442530,-1067.0,0.00019849,2]
[329791047,1718675442539,-165.822,0.00019849,2]
[329791048,1718675442549,-226.85225071,0.000201,2]
[329791049,1718675442559,-155.96,0.00020359,2]
[329791050,1718675442569,-169.1,0.00020395,2]
[329791051,1718675442579,-408.27,0.00020459,2]
[329791052,1718675442588,-152.82903149,0.00020639,2]
[329791053,1718675442598,-151.0,0.00021396,2]
[329791054,1718675442609,-7500.0,0.000214,2]
[329791055,1718675442621,-297.34139806,0.000215,2]
[329791056,1718675442631,-12739.71338692,0.000215,2]
[329791057,1718675442640,-1051.4266594,0.00021589,2]
[329791058,1718675442651,-500.0,0.00021589,2]
[329791059,1718675442661,-439.14180306,0.00021589,2]
[329791060,1718675442671,-800.0,0.000216,7]
[329791061,1718675442682,-1200.0,0.000217,7]
[329791062,1718675442693,-1600.0,0.000218,7]
[329791063,1718675442703,-25045.8578,0.00021816,2]
[329791064,1718675442714,-19424.264,0.00021816,2]
[329791065,1718675442724,-498.61080041,0.00021817,2]
[329791066,1718675442735,-164.60978926,0.00021817,2]